[Event "Titled Tuesday Blitz August 22 Early 2023"]
[White "Nazaretyan, Tigran"]
[Black "Romero Ruscalleda, Josep"]
[WhiteFideId "24162345"]
[BlackFideId "2231859"]
[WhiteElo "2528"]
[BlackElo "2426"]
[Result "1-0"]
[Round "7"]
[TimeControl "180+1"]
[Date "2023.08.22"]
[WhiteClock "0:00:08"]
[BlackClock "0:00:01"]
[Board "116"]

1. d4 {[%clk 0:03:00]}  g6 {[%clk 0:03:00]} 2. c4 {[%clk 0:02:59]}  Bg7 {[%clk 0:03:00]} 3. Nf3 {[%clk 0:02:59]}  d6 {[%clk 0:03:01]} 4. Nc3 {[%clk 0:02:59]}  Nc6 {[%clk 0:02:58]} 5. e3 {[%clk 0:02:54]}  e5 {[%clk 0:02:55]} 6. Be2 {[%clk 0:02:49]}  f5 {[%clk 0:02:48]} 7. b4 {[%clk 0:02:41]}  exd4 {[%clk 0:02:38]} 8. exd4 {[%clk 0:02:39]}  Nf6 {[%clk 0:02:38]} 9. O-O {[%clk 0:02:32]}  O-O {[%clk 0:02:37]} 10. b5 {[%clk 0:02:31]}  Ne7 {[%clk 0:02:36]} 11. a4 {[%clk 0:02:29]}  a6 {[%clk 0:02:25]} 12. Ba3 {[%clk 0:02:26]}  axb5 {[%clk 0:02:24]} 13. axb5 {[%clk 0:02:23]}  Bd7 {[%clk 0:02:21]} 14. Qb3 {[%clk 0:02:21]}  Kh8 {[%clk 0:02:11]} 15. b6 {[%clk 0:02:20]}  c5 {[%clk 0:01:42]} 16. dxc5 {[%clk 0:02:18]}  dxc5 {[%clk 0:01:41]} 17. Bxc5 {[%clk 0:02:18]}  Rxa1 {[%clk 0:01:41]} 18. Rxa1 {[%clk 0:02:17]}  Ne4 {[%clk 0:01:38]} 19. Bd4 {[%clk 0:02:08]}  Nc6 {[%clk 0:01:27]} 20. Bxg7+ {[%clk 0:02:03]}  Kxg7 {[%clk 0:01:27]} 21. Nd5 {[%clk 0:02:03]}  Be6 {[%clk 0:01:20]} 22. Qb2+ {[%clk 0:02:01]}  Kg8 {[%clk 0:01:19]} 23. Rd1 {[%clk 0:01:58]}  Bf7 {[%clk 0:00:50]} 24. Ne5 {[%clk 0:01:52]}  Bxd5 {[%clk 0:00:42]} 25. Rxd5 {[%clk 0:01:48]}  Qe8 {[%clk 0:00:35]} 26. f3 {[%clk 0:01:45]}  Nf6 {[%clk 0:00:24]} 27. Rb5 {[%clk 0:01:38]}  Nxe5 {[%clk 0:00:20]} 28. Qxe5 {[%clk 0:01:35]}  Qc6 {[%clk 0:00:20]} 29. c5 {[%clk 0:01:24]}  Re8 {[%clk 0:00:20]} 30. Bc4+ {[%clk 0:01:23]}  Kg7 {[%clk 0:00:20]} 31. Qc3 {[%clk 0:01:23]}  Qd7 {[%clk 0:00:18]} 32. Rb1 {[%clk 0:01:18]}  Qe7 {[%clk 0:00:15]} 33. Bb5 {[%clk 0:01:16]}  Rd8 {[%clk 0:00:14]} 34. c6 {[%clk 0:01:15]}  bxc6 {[%clk 0:00:14]} 35. Bxc6 {[%clk 0:01:15]}  Rb8 {[%clk 0:00:14]} 36. b7 {[%clk 0:01:15]}  Qd6 {[%clk 0:00:13]} 37. h3 {[%clk 0:01:11]}  h5 {[%clk 0:00:13]} 38. Kh1 {[%clk 0:01:10]}  h4 {[%clk 0:00:13]} 39. Qc4 {[%clk 0:01:03]}  Nh5 {[%clk 0:00:12]} 40. Qc3+ {[%clk 0:01:02]}  Kh6 {[%clk 0:00:11]} 41. Qc1+ {[%clk 0:01:00]}  Kh7 {[%clk 0:00:11]} 42. Qc4 {[%clk 0:00:38]}  Ng3+ {[%clk 0:00:10]} 43. Kg1 {[%clk 0:00:38]}  Rf8 {[%clk 0:00:10]} 44. Bd5 {[%clk 0:00:37]}  Qe5 {[%clk 0:00:08]} 45. Bg8+ {[%clk 0:00:23]}  Kh6 {[%clk 0:00:08]} 46. Qc1+ {[%clk 0:00:19]}  g5 {[%clk 0:00:07]} 47. Bc4 {[%clk 0:00:19]}  Qd4+ {[%clk 0:00:06]} 48. Kh2 {[%clk 0:00:18]}  Rb8 {[%clk 0:00:06]} 49. Bf7 {[%clk 0:00:16]}  Qe5 {[%clk 0:00:06]} 50. Qc6+ {[%clk 0:00:15]}  Kg7 {[%clk 0:00:05]} 51. Qg6+ {[%clk 0:00:15]}  Kf8 {[%clk 0:00:06]} 52. Kg1 {[%clk 0:00:12]}  Ne2+ {[%clk 0:00:04]} 53. Kf2 {[%clk 0:00:11]}  Nf4 {[%clk 0:00:04]} 54. Qg8+ {[%clk 0:00:06]}  Ke7 {[%clk 0:00:04]} 55. Qxb8 {[%clk 0:00:06]}  Nd3+ {[%clk 0:00:03]} 56. Kf1 {[%clk 0:00:05]}  Qxb8 {[%clk 0:00:03]} 57. Bc4 {[%clk 0:00:06]}  Qd6 {[%clk 0:00:03]} 58. b8=Q {[%clk 0:00:04]}  Qxb8 {[%clk 0:00:03]} 59. Rxb8 {[%clk 0:00:04]}  Ne5 {[%clk 0:00:03]} 60. Rb7+ {[%clk 0:00:05]}  Kd6 {[%clk 0:00:03]} 61. Ba6 {[%clk 0:00:05]}  Kc5 {[%clk 0:00:03]} 62. Rg7 {[%clk 0:00:06]}  Kd5 {[%clk 0:00:04]} 63. Rxg5 {[%clk 0:00:07]}  Kd4 {[%clk 0:00:04]} 64. Rxf5 {[%clk 0:00:07]}  Nc6 {[%clk 0:00:03]} 65. Rh5 {[%clk 0:00:06]}  Nb4 {[%clk 0:00:03]} 66. Bb5 {[%clk 0:00:06]}  Ke3 {[%clk 0:00:02]} 67. Rxh4 {[%clk 0:00:06]}  Nc2 {[%clk 0:00:03]} 68. Re4+ {[%clk 0:00:06]}  Kd2 {[%clk 0:00:03]} 69. h4 {[%clk 0:00:07]}  Nd4 {[%clk 0:00:03]} 70. Rxd4+ {[%clk 0:00:07]}  Ke3 {[%clk 0:00:01]} 71. Re4+ {[%clk 0:00:08]} 1-0


[Site "https://www.chess.com"]

[Event "Titled Tuesday Blitz August 22 Early 2023"]
[White "Martin Carmona, Gaston Manuel"]
[Black "Khromkin, Andrey"]
[WhiteFideId "22284567"]
[BlackFideId "4154126"]
[WhiteElo "2522"]
[BlackElo "2420"]
[Result "1-0"]
[Round "7"]
[TimeControl "180+1"]
[Date "2023.08.22"]
[WhiteClock "0:00:08"]
[BlackClock "0:00:00"]
[Board "117"]

1. Nf3 {[%clk 0:02:42]}  c5 {[%clk 0:02:59]} 2. c4 {[%clk 0:02:41]}  Nc6 {[%clk 0:02:59]} 3. Nc3 {[%clk 0:02:42]}  g6 {[%clk 0:02:58]} 4. g3 {[%clk 0:02:41]}  Bg7 {[%clk 0:02:58]} 5. Bg2 {[%clk 0:02:42]}  a6 {[%clk 0:02:58]} 6. O-O {[%clk 0:02:42]}  Rb8 {[%clk 0:02:59]} 7. e3 {[%clk 0:02:42]}  d6 {[%clk 0:02:59]} 8. d4 {[%clk 0:02:42]}  cxd4 {[%clk 0:03:00]} 9. exd4 {[%clk 0:02:43]}  Bg4 {[%clk 0:03:00]} 10. Be3 {[%clk 0:02:39]}  Nh6 {[%clk 0:02:57]} 11. Bxh6 {[%clk 0:02:20]}  Bxh6 {[%clk 0:02:57]} 12. h3 {[%clk 0:02:20]}  Bxf3 {[%clk 0:02:53]} 13. Bxf3 {[%clk 0:02:19]}  Bg7 {[%clk 0:02:54]} 14. d5 {[%clk 0:02:06]}  Ne5 {[%clk 0:02:53]} 15. Be2 {[%clk 0:02:07]}  Rc8 {[%clk 0:02:48]} 16. Qb3 {[%clk 0:01:54]}  Qd7 {[%clk 0:02:42]} 17. Kg2 {[%clk 0:01:54]}  g5 {[%clk 0:02:22]} 18. Ne4 {[%clk 0:01:33]}  h6 {[%clk 0:02:17]} 19. Rae1 {[%clk 0:01:17]}  f5 {[%clk 0:02:14]} 20. Nc3 {[%clk 0:01:15]}  f4 {[%clk 0:02:11]} 21. Bh5+ {[%clk 0:01:14]}  Kf8 {[%clk 0:01:57]} 22. Re4 {[%clk 0:01:12]}  Qf5 {[%clk 0:01:37]} 23. Qxb7 {[%clk 0:01:00]}  Bf6 {[%clk 0:01:02]} 24. Rxe5 {[%clk 0:00:31]}  Bxe5 {[%clk 0:00:53]} 25. Bg4 {[%clk 0:00:31]}  f3+ {[%clk 0:00:48]} 26. Kh1 {[%clk 0:00:26]}  Qd3 {[%clk 0:00:45]} 27. Kg1 {[%clk 0:00:17]}  Kf7 {[%clk 0:00:41]} 28. Bxc8 {[%clk 0:00:16]}  Qd4 {[%clk 0:00:08]} 29. Be6+ {[%clk 0:00:16]}  Kf6 {[%clk 0:00:08]} 30. Re1 {[%clk 0:00:12]}  Bxg3 {[%clk 0:00:06]} 31. Ne4+ {[%clk 0:00:13]}  Kg6 {[%clk 0:00:00]} 32. Bf5+ {[%clk 0:00:08]} 1-0


[Site "https://www.chess.com"]

[Event "Titled Tuesday Blitz August 22 Early 2023"]
[White "Boraso, Alessio"]
[Black "Biregina"]
[WhiteFideId "848077"]
[WhiteElo "2521"]
[BlackElo "2409"]
[Result "0-1"]
[Round "7"]
[TimeControl "180+1"]
[Date "2023.08.22"]
[WhiteClock "0:00:00"]
[BlackClock "0:00:10"]
[Board "118"]

1. g3 {[%clk 0:03:00]}  Nc6 {[%clk 0:02:58]} 2. Bg2 {[%clk 0:02:56]}  Nf6 {[%clk 0:02:57]} 3. c4 {[%clk 0:02:56]}  e5 {[%clk 0:02:53]} 4. Nc3 {[%clk 0:02:55]}  b6 {[%clk 0:02:44]} 5. e3 {[%clk 0:02:51]}  Bb7 {[%clk 0:02:44]} 6. Nge2 {[%clk 0:02:52]}  Bb4 {[%clk 0:02:34]} 7. O-O {[%clk 0:02:52]}  Bxc3 {[%clk 0:02:33]} 8. Nxc3 {[%clk 0:02:49]}  O-O {[%clk 0:02:33]} 9. Nd5 {[%clk 0:02:49]}  Nxd5 {[%clk 0:02:32]} 10. cxd5 {[%clk 0:02:49]}  Nb4 {[%clk 0:02:20]} 11. Qb3 {[%clk 0:02:46]}  Na6 {[%clk 0:02:16]} 12. Qc3 {[%clk 0:02:43]}  Re8 {[%clk 0:01:53]} 13. b4 {[%clk 0:02:37]}  Rc8 {[%clk 0:01:48]} 14. Bb2 {[%clk 0:02:21]}  c5 {[%clk 0:01:41]} 15. b5 {[%clk 0:02:10]}  Nc7 {[%clk 0:01:39]} 16. Qc4 {[%clk 0:02:07]}  d6 {[%clk 0:01:33]} 17. a4 {[%clk 0:02:06]}  a6 {[%clk 0:01:29]} 18. f4 {[%clk 0:01:53]}  f6 {[%clk 0:01:12]} 19. fxe5 {[%clk 0:01:39]}  fxe5 {[%clk 0:01:13]} 20. Rf2 {[%clk 0:01:35]}  axb5 {[%clk 0:01:04]} 21. axb5 {[%clk 0:01:34]}  Ra8 {[%clk 0:00:36]} 22. Raf1 {[%clk 0:01:33]}  Qd7 {[%clk 0:00:31]} 23. Rf7 {[%clk 0:01:17]}  Re7 {[%clk 0:00:26]} 24. Bh3 {[%clk 0:01:06]}  Qe8 {[%clk 0:00:18]} 25. Be6 {[%clk 0:00:44]}  Nxe6 {[%clk 0:00:11]} 26. dxe6 {[%clk 0:00:44]}  Bc8 {[%clk 0:00:03]} 27. Qh4 {[%clk 0:00:11]}  Rxe6 {[%clk 0:00:02]} 28. Rc7 {[%clk 0:00:05]}  Bd7 {[%clk 0:00:02]} 29. Qg5 {[%clk 0:00:03]}  Rc8 {[%clk 0:00:03]} 30. Ra7 {[%clk 0:00:03]}  Rd8 {[%clk 0:00:03]} 31. d4 {[%clk 0:00:04]}  Qe7 {[%clk 0:00:03]} 32. Qg4 {[%clk 0:00:03]}  Rf6 {[%clk 0:00:03]} 33. Qe2 {[%clk 0:00:02]}  Rxf1+ {[%clk 0:00:04]} 34. Qxf1 {[%clk 0:00:03]}  exd4 {[%clk 0:00:04]} 35. Qc4+ {[%clk 0:00:03]}  d5 {[%clk 0:00:05]} 36. Qxd5+ {[%clk 0:00:03]}  Qe6 {[%clk 0:00:05]} 37. Qxe6+ {[%clk 0:00:02]}  Bxe6 {[%clk 0:00:06]} 38. exd4 {[%clk 0:00:03]}  cxd4 {[%clk 0:00:06]} 39. Ra1 {[%clk 0:00:02]}  d3 {[%clk 0:00:07]} 40. Kf2 {[%clk 0:00:02]}  Bb3 {[%clk 0:00:08]} 41. Bc3 {[%clk 0:00:01]}  d2 {[%clk 0:00:08]} 42. Bxd2 {[%clk 0:00:01]}  Rxd2+ {[%clk 0:00:09]} 43. Ke3 {[%clk 0:00:02]}  Rd5 {[%clk 0:00:09]} 44. Ke4 {[%clk 0:00:02]}  Rxb5 {[%clk 0:00:10]} 45. Rb1 {[%clk 0:00:02]}  Bc2+ {[%clk 0:00:09]} 46. Kd4 {[%clk 0:00:00]}  Rxb1 {[%clk 0:00:10]} 0-1


[Site "https://www.chess.com"]

[Event "Titled Tuesday Blitz August 22 Early 2023"]
[White "Rego, Pedro Filipe"]
[Black "NovozhilovSemen"]
[WhiteFideId "1904310"]
[WhiteElo "2389"]
[BlackElo "2516"]
[Result "0-1"]
[Round "7"]
[TimeControl "180+1"]
[Date "2023.08.22"]
[WhiteClock "0:00:43"]
[BlackClock "0:02:12"]
[Board "122"]

1. c4 {[%clk 0:03:00]}  e5 {[%clk 0:02:59]} 2. Nc3 {[%clk 0:02:56]}  Bb4 {[%clk 0:02:59]} 3. Nd5 {[%clk 0:02:54]}  Be7 {[%clk 0:02:58]} 4. Nf3 {[%clk 0:02:51]}  d6 {[%clk 0:02:58]} 5. g3 {[%clk 0:02:50]}  c6 {[%clk 0:02:58]} 6. Nc3 {[%clk 0:02:51]}  f5 {[%clk 0:02:58]} 7. Bg2 {[%clk 0:02:49]}  Nf6 {[%clk 0:02:58]} 8. O-O {[%clk 0:02:50]}  O-O {[%clk 0:02:58]} 9. d3 {[%clk 0:02:49]}  Be6 {[%clk 0:02:58]} 10. Ng5 {[%clk 0:02:48]}  Bc8 {[%clk 0:02:58]} 11. b4 {[%clk 0:02:46]}  h6 {[%clk 0:02:57]} 12. Nf3 {[%clk 0:02:46]}  Be6 {[%clk 0:02:57]} 13. b5 {[%clk 0:02:46]}  Nbd7 {[%clk 0:02:57]} 14. bxc6 {[%clk 0:02:36]}  bxc6 {[%clk 0:02:58]} 15. Qa4 {[%clk 0:02:35]}  Qc7 {[%clk 0:02:56]} 16. Ba3 {[%clk 0:02:34]}  Rfc8 {[%clk 0:02:49]} 17. Rab1 {[%clk 0:02:27]}  Bd8 {[%clk 0:02:46]} 18. Qa6 {[%clk 0:02:11]}  Bf7 {[%clk 0:02:38]} 19. Na4 {[%clk 0:02:10]}  Rab8 {[%clk 0:02:36]} 20. Nh4 {[%clk 0:02:05]}  Rxb1 {[%clk 0:02:32]} 21. Rxb1 {[%clk 0:02:06]}  Nb8 {[%clk 0:02:33]} 22. Rxb8 {[%clk 0:01:59]}  Rxb8 {[%clk 0:02:31]} 23. Nxf5 {[%clk 0:01:48]}  Rb1+ {[%clk 0:02:31]} 24. Bf1 {[%clk 0:01:47]}  Be6 {[%clk 0:02:29]} 25. e4 {[%clk 0:01:17]}  Bc8 {[%clk 0:02:26]} 26. Bxd6 {[%clk 0:01:06]}  Bxa6 {[%clk 0:02:25]} 27. Bxc7 {[%clk 0:01:03]}  Bxc7 {[%clk 0:02:26]} 28. Nc5 {[%clk 0:01:02]}  Bb7 {[%clk 0:02:20]} 29. Kg2 {[%clk 0:00:56]}  Kf7 {[%clk 0:02:16]} 30. h4 {[%clk 0:00:52]}  Bc8 {[%clk 0:02:15]} 31. Ne3 {[%clk 0:00:51]}  Rb2 {[%clk 0:02:13]} 32. a4 {[%clk 0:00:43]}  Bb6 {[%clk 0:02:12]} 0-1


[Site "https://www.chess.com"]

[Event "Titled Tuesday Blitz August 22 Early 2023"]
[White "Balabayeva, Xeniya"]
[Black "Slovineanu, Viacheslav"]
[WhiteFideId "13719688"]
[BlackFideId "13900510"]
[WhiteElo "2513"]
[BlackElo "2386"]
[Result "1-0"]
[Round "7"]
[TimeControl "180+1"]
[Date "2023.08.22"]
[WhiteClock "0:00:20"]
[BlackClock "0:00:32"]
[Board "123"]

1. e4 {[%clk 0:03:00]}  c6 {[%clk 0:02:59]} 2. d4 {[%clk 0:02:59]}  d5 {[%clk 0:02:55]} 3. Nd2 {[%clk 0:02:59]}  dxe4 {[%clk 0:02:55]} 4. Nxe4 {[%clk 0:03:00]}  Nf6 {[%clk 0:02:55]} 5. Nxf6+ {[%clk 0:02:59]}  exf6 {[%clk 0:02:56]} 6. c3 {[%clk 0:03:00]}  Bd6 {[%clk 0:02:55]} 7. Bd3 {[%clk 0:02:59]}  Na6 {[%clk 0:02:55]} 8. Nf3 {[%clk 0:02:53]}  Nc7 {[%clk 0:02:52]} 9. Qc2 {[%clk 0:02:50]}  h5 {[%clk 0:02:48]} 10. O-O {[%clk 0:02:35]}  Kf8 {[%clk 0:02:41]} 11. h3 {[%clk 0:02:19]}  Be6 {[%clk 0:02:27]} 12. Nh4 {[%clk 0:02:00]}  Nd5 {[%clk 0:02:19]} 13. a3 {[%clk 0:01:45]}  b5 {[%clk 0:02:18]} 14. b3 {[%clk 0:01:41]}  Bc7 {[%clk 0:02:00]} 15. Bd2 {[%clk 0:01:32]}  g5 {[%clk 0:01:46]} 16. Nf5 {[%clk 0:01:14]}  Bxf5 {[%clk 0:01:44]} 17. Bxf5 {[%clk 0:01:10]}  Qd6 {[%clk 0:01:44]} 18. g3 {[%clk 0:01:05]}  h4 {[%clk 0:01:34]} 19. c4 {[%clk 0:01:02]}  hxg3 {[%clk 0:01:01]} 20. cxd5 {[%clk 0:00:57]}  g2 {[%clk 0:01:01]} 21. Bb4 {[%clk 0:00:51]}  gxf1=Q+ {[%clk 0:00:49]} 22. Kxf1 {[%clk 0:00:44]}  Kg7 {[%clk 0:00:48]} 23. Bxd6 {[%clk 0:00:42]}  Bxd6 {[%clk 0:00:48]} 24. dxc6 {[%clk 0:00:39]}  Bc7 {[%clk 0:00:43]} 25. d5 {[%clk 0:00:37]}  Rad8 {[%clk 0:00:42]} 26. Bd7 {[%clk 0:00:28]}  Rh4 {[%clk 0:00:39]} 27. Rd1 {[%clk 0:00:26]}  Rf4 {[%clk 0:00:37]} 28. d6 {[%clk 0:00:23]}  Bb6 {[%clk 0:00:32]} 29. c7 {[%clk 0:00:20]} 1-0


[Site "https://www.chess.com"]

[Event "Titled Tuesday Blitz August 22 Early 2023"]
[White "Okike, David"]
[Black "Glavina, Pablo"]
[WhiteFideId "8500134"]
[BlackFideId "100234"]
[WhiteElo "2372"]
[BlackElo "2510"]
[Result "0-1"]
[Round "7"]
[TimeControl "180+1"]
[Date "2023.08.22"]
[WhiteClock "0:01:52"]
[BlackClock "0:01:53"]
[Board "125"]

1. e4 {[%clk 0:03:00]}  c6 {[%clk 0:02:58]} 2. d4 {[%clk 0:03:00]}  d5 {[%clk 0:02:59]} 3. e5 {[%clk 0:03:00]}  Bf5 {[%clk 0:02:59]} 4. Nf3 {[%clk 0:03:00]}  e6 {[%clk 0:02:59]} 5. Be2 {[%clk 0:03:00]}  c5 {[%clk 0:02:59]} 6. Be3 {[%clk 0:02:58]}  Qb6 {[%clk 0:02:58]} 7. b3 {[%clk 0:02:57]}  Nc6 {[%clk 0:02:55]} 8. O-O {[%clk 0:02:55]}  cxd4 {[%clk 0:02:28]} 9. Nxd4 {[%clk 0:02:55]}  Nxd4 {[%clk 0:02:29]} 10. Bxd4 {[%clk 0:02:54]}  Bc5 {[%clk 0:02:29]} 11. c3 {[%clk 0:02:54]}  Ne7 {[%clk 0:02:29]} 12. b4 {[%clk 0:02:48]}  Bxd4 {[%clk 0:02:27]} 13. Qxd4 {[%clk 0:02:49]}  Qxd4 {[%clk 0:02:26]} 14. cxd4 {[%clk 0:02:49]}  Bxb1 {[%clk 0:02:21]} 15. Raxb1 {[%clk 0:02:48]}  O-O {[%clk 0:02:15]} 16. Rfc1 {[%clk 0:02:48]}  Rfc8 {[%clk 0:02:07]} 17. g4 {[%clk 0:02:29]}  Rxc1+ {[%clk 0:01:56]} 18. Rxc1 {[%clk 0:02:28]}  Nc6 {[%clk 0:01:57]} 19. Rd1 {[%clk 0:01:57]}  Nxb4 {[%clk 0:01:56]} 20. Rb1 {[%clk 0:01:58]}  Nc6 {[%clk 0:01:53]} 21. Rxb7 {[%clk 0:01:57]}  Nxd4 {[%clk 0:01:54]} 22. Bd3 {[%clk 0:01:56]}  Nf3+ {[%clk 0:01:52]} 23. Kg2 {[%clk 0:01:56]}  Nxe5 {[%clk 0:01:53]} 24. a4 {[%clk 0:01:52]}  Nxd3 {[%clk 0:01:53]} 0-1


[Site "https://www.chess.com"]

[Event "Titled Tuesday Blitz August 22 Early 2023"]
[White "Perez, Maximiliano"]
[Black "Bashirli, Saadat"]
[WhiteFideId "117234"]
[BlackFideId "13429990"]
[WhiteElo "2510"]
[BlackElo "2357"]
[Result "0-1"]
[Round "7"]
[TimeControl "180+1"]
[Date "2023.08.22"]
[WhiteClock "0:00:02"]
[BlackClock "0:00:07"]
[Board "126"]

1. d4 {[%clk 0:03:00]}  Nf6 {[%clk 0:02:58]} 2. Bf4 {[%clk 0:02:59]}  g6 {[%clk 0:02:56]} 3. Nc3 {[%clk 0:02:58]}  Bg7 {[%clk 0:02:52]} 4. e4 {[%clk 0:02:57]}  d6 {[%clk 0:02:51]} 5. Qd2 {[%clk 0:02:56]}  Nbd7 {[%clk 0:02:43]} 6. e5 {[%clk 0:02:56]}  Nh5 {[%clk 0:02:40]} 7. Bh6 {[%clk 0:02:49]}  O-O {[%clk 0:02:38]} 8. Bxg7 {[%clk 0:02:42]}  Nxg7 {[%clk 0:02:36]} 9. O-O-O {[%clk 0:02:43]}  e6 {[%clk 0:02:25]} 10. h4 {[%clk 0:02:38]}  h5 {[%clk 0:02:20]} 11. Nf3 {[%clk 0:02:32]}  dxe5 {[%clk 0:02:17]} 12. dxe5 {[%clk 0:02:30]}  Qe7 {[%clk 0:02:16]} 13. Ne4 {[%clk 0:02:29]}  b6 {[%clk 0:02:06]} 14. Bb5 {[%clk 0:02:20]}  Nf5 {[%clk 0:01:15]} 15. Bxd7 {[%clk 0:02:16]}  Rd8 {[%clk 0:01:14]} 16. Nf6+ {[%clk 0:02:14]}  Kg7 {[%clk 0:01:11]} 17. Nd4 {[%clk 0:02:00]}  Bxd7 {[%clk 0:00:59]} 18. Nxd7 {[%clk 0:01:56]}  Nxd4 {[%clk 0:00:56]} 19. Qxd4 {[%clk 0:01:55]}  Rac8 {[%clk 0:00:52]} 20. g3 {[%clk 0:01:49]}  c5 {[%clk 0:00:42]} 21. Qd6 {[%clk 0:01:45]}  Qe8 {[%clk 0:00:42]} 22. Nf6 {[%clk 0:01:38]}  Qa4 {[%clk 0:00:28]} 23. Qxd8 {[%clk 0:01:15]}  Rxd8 {[%clk 0:00:26]} 24. Rxd8 {[%clk 0:01:15]}  Qxa2 {[%clk 0:00:22]} 25. g4 {[%clk 0:00:35]}  hxg4 {[%clk 0:00:18]} 26. Rg8+ {[%clk 0:00:33]}  Kh6 {[%clk 0:00:15]} 27. Nxg4+ {[%clk 0:00:33]}  Kh7 {[%clk 0:00:13]} 28. Nf6+ {[%clk 0:00:33]}  Kh6 {[%clk 0:00:13]} 29. Ng4+ {[%clk 0:00:16]}  Kh7 {[%clk 0:00:13]} 30. Nf6+ {[%clk 0:00:15]}  Kh6 {[%clk 0:00:13]} 31. Rd1 {[%clk 0:00:16]}  Qa1+ {[%clk 0:00:12]} 32. Kd2 {[%clk 0:00:16]}  Qxb2 {[%clk 0:00:12]} 33. f3 {[%clk 0:00:14]}  Qd4+ {[%clk 0:00:11]} 34. Kc1 {[%clk 0:00:14]}  Qa1+ {[%clk 0:00:11]} 35. Kd2 {[%clk 0:00:14]}  Qd4+ {[%clk 0:00:12]} 36. Ke2 {[%clk 0:00:14]}  Qxe5+ {[%clk 0:00:12]} 37. Ne4 {[%clk 0:00:14]}  f5 {[%clk 0:00:11]} 38. Rdd8 {[%clk 0:00:11]}  fxe4 {[%clk 0:00:10]} 39. f4 {[%clk 0:00:09]}  Qc3 {[%clk 0:00:08]} 40. Rh8+ {[%clk 0:00:07]}  Kg7 {[%clk 0:00:08]} 41. Rdg8+ {[%clk 0:00:06]}  Kf7 {[%clk 0:00:08]} 42. Rf8+ {[%clk 0:00:06]}  Ke7 {[%clk 0:00:08]} 43. Re8+ {[%clk 0:00:06]}  Kf7 {[%clk 0:00:08]} 44. Rhf8+ {[%clk 0:00:06]}  Kg7 {[%clk 0:00:08]} 45. Rg8+ {[%clk 0:00:06]}  Kf7 {[%clk 0:00:08]} 46. Ref8+ {[%clk 0:00:06]}  Ke7 {[%clk 0:00:08]} 47. Re8+ {[%clk 0:00:06]}  Kd7 {[%clk 0:00:08]} 48. Rd8+ {[%clk 0:00:06]}  Kc6 {[%clk 0:00:08]} 49. Rc8+ {[%clk 0:00:02]}  Kb5 {[%clk 0:00:08]} 50. Rxg6 {[%clk 0:00:01]}  Qxc2+ {[%clk 0:00:08]} 51. Ke3 {[%clk 0:00:02]}  Qd3+ {[%clk 0:00:08]} 52. Kf2 {[%clk 0:00:03]}  e3+ {[%clk 0:00:08]} 53. Kg2 {[%clk 0:00:02]}  Qxg6+ {[%clk 0:00:08]} 54. Kf3 {[%clk 0:00:02]}  Qd3 {[%clk 0:00:08]} 55. Re8 {[%clk 0:00:01]}  e2+ {[%clk 0:00:08]} 56. Kf2 {[%clk 0:00:02]}  Qd1 {[%clk 0:00:09]} 57. Rxe6 {[%clk 0:00:02]}  Qd4+ {[%clk 0:00:08]} 58. Kg3 {[%clk 0:00:03]}  Qg1+ {[%clk 0:00:07]} 59. Kf3 {[%clk 0:00:02]}  e1=Q {[%clk 0:00:07]} 0-1


[Site "https://www.chess.com"]